fUST/lending_fUST_20250705
["ID","MTS","AMOUNT","RATE_DAILY","PERIOD"]
[369709752,1751707871032,-190.215856,0.00021095,2]
[369709753,1751707871042,-682.29,0.00021095,2]
[369709754,1751707871052,-294.46,0.00021095,2]
[369709755,1751707871061,-469.32,0.00021095,2]
[369709756,1751707871071,-460.0,0.00021095,2]
[369709757,1751707871080,-563.9,0.00021095,2]
[369709758,1751707871090,-151.0,0.00021095,2]
[369709759,1751707871099,-526.86,0.00021095,2]
[369709760,1751707871109,-660.66,0.00021095,2]
[369709761,1751707871118,-151.0,0.00021095,2]
[369709762,1751707871128,-684.71,0.00021095,2]
[369709763,1751707871137,-460.0,0.00021095,2]
[369709764,1751707871147,-484.47,0.00021095,2]
[369709765,1751707871156,-151.0,0.00021095,2]
[369709766,1751707871165,-460.0,0.00021095,2]
[369709767,1751707871174,-1087.2,0.00021095,2]
[369709768,1751707871184,-261.710663,0.00021095,2]
[369709769,1751707871193,-3781.13,0.00021095,2]
[369709770,1751707871202,-261.710663,0.00021095,2]
[369709771,1751707871211,-521.89,0.00021095,2]
[369709772,1751707871220,-460.0,0.00021095,2]
[369709773,1751707871229,-1571.06,0.00021095,2]
[369709774,1751707871239,-460.0,0.00021095,2]
[369709775,1751707871250,-460.0,0.00021095,2]
[369709776,1751707871259,-1037.13,0.00021095,2]
[369709777,1751707871269,-460.0,0.00021095,2]
[369709778,1751707871279,-3582.28,0.00021095,2]
[369709779,1751707871288,-460.0,0.00021095,2]
[369709780,1751707871297,-2764.96,0.00021095,2]
[369709781,1751707871307,-604.66,0.00021095,2]
[369709782,1751707871317,-1350.46,0.00021095,2]
[369709783,1751707871327,-1103.03,0.00021095,2]
[369709784,1751707871336,-460.0,0.00021095,2]
[369709785,1751707871346,-612.38,0.00021095,2]
[369709786,1751707871356,-460.0,0.00021095,2]
[369709787,1751707871365,-460.0,0.00021095,2]
[369709788,1751707871374,-789.8,0.00021095,2]
[369709789,1751707871383,-460.0,0.00021095,2]
[369709790,1751707871394,-1554.87,0.00021095,2]
[369709791,1751707871403,-469.04,0.00021095,2]
[369709792,1751707871412,-525.18,0.00021095,2]
[369709793,1751707871422,-1860.12,0.00021095,2]
[369709794,1751707871432,-773.29,0.00021095,2]
[369709795,1751707871441,-2251.26,0.00021095,2]
[369709796,1751707871451,-460.0,0.00021095,2]
[369709797,1751707871460,-3715.95,0.00021095,2]
[369709798,1751707871470,-595.4,0.00021095,2]
[369709799,1751707871480,-460.0,0.00021095,2]
[369709800,1751707871489,-611.53,0.00021095,2]
[369709801,1751707871499,-563.95,0.00021095,2]
[369709802,1751707871508,-1475.55,0.00021095,2]
[369709803,1751707871518,-1348.12,0.00021095,2]
[369709804,1751707871528,-460.0,0.00021095,2]
[369709805,1751707871537,-460.0,0.00021095,2]
[369709806,1751707871548,-1571.18,0.00021095,2]
[369709807,1751707871558,-287.92307245,0.00021095,2]
[369709808,1751707871567,-318.04,0.00021095,2]
[369709809,1751707871577,-460.0,0.00021095,2]
[369709810,1751707871587,-840.45,0.00021095,2]
[369709811,1751707871596,-532.91,0.00021095,2]
[369709812,1751707871605,-460.0,0.00021095,2]
[369709813,1751707871615,-460.0,0.00021095,2]
[369709814,1751707871624,-876.43,0.00021095,2]
[369709815,1751707871633,-3634.14,0.00021095,2]
[369709816,1751707871642,-460.0,0.00021095,2]
[369709817,1751707871652,-2031.79,0.00021095,2]
[369709818,1751707871661,-460.0,0.00021095,2]
[369709819,1751707871671,-881.0,0.000211,2]
[369709820,1751707871680,-2000.0,0.00021116,2]
[369709821,1751707871690,-2000.0,0.00021116,2]
[369709822,1751707871699,-1500.0,0.00021116,2]
[369709823,1751707871709,-2000.0,0.00021116,2]
[369709824,1751707871720,-174.845258,0.0002112,14]
[369709825,1751707871729,-200.0,0.0002112,2]
[369709826,1751707871739,-244.299,0.00021124,2]
[369709827,1751707871748,-168.0,0.00021164,2]
[369709828,1751707871758,-500.0,0.0002119,2]
[369709829,1751707871767,-160.388889,0.00021193,2]
[369709830,1751707871781,-205.49733553,0.00021204,4]
[369709831,1751707871791,-500.0,0.00021254,2]
[369709832,1751707871800,-165.49747021,0.0002126,2]
[369709833,1751707871809,-169.99279489,0.0002126,2]
[369709834,1751707871819,-151.0,0.00021266,2]
[369709835,1751707871828,-151.0,0.00021266,2]
[369709836,1751707871838,-159.991382,0.00021266,2]
[369709837,1751707871847,-151.0,0.00021282,5]
[369709838,1751707871857,-500.0,0.000213,2]
[369709839,1751707871866,-500.0,0.000213,2]
[369709840,1751707871876,-500.0,0.000213,2]
[369709841,1751707871885,-500.0,0.000213,2]
[369709842,1751707871894,-500.0,0.000213,2]
[369709843,1751707871903,-500.0,0.000213,2]
[369709844,1751707871914,-500.0,0.000213,2]
[369709845,1751707871923,-500.0,0.000213,2]
[369709846,1751707871933,-500.0,0.000213,2]
[369709847,1751707871942,-500.0,0.000213,2]
[369709848,1751707871952,-500.0,0.000213,2]
[369709849,1751707871961,-500.0,0.000213,2]
[369709850,1751707871971,-500.0,0.000213,2]
[369709851,1751707871980,-500.15731438,0.000213,2]
[369709852,1751707871989,-500.0,0.000213,2]
[369709853,1751707871998,-500.0,0.000213,2]
[369709854,1751707872007,-500.0,0.000213,2]
[369709855,1751707872016,-500.0,0.000213,2]
[369709856,1751707872026,-500.30825857,0.000213,2]
[369709857,1751707872035,-500.0,0.000213,2]
[369709858,1751707872044,-346.88674891,0.000213,2]
[369709859,1751707872054,-500.0,0.000213,2]
[369709860,1751707872062,-500.40419778,0.000213,2]
[369709861,1751707872072,-500.0,0.000213,2]
[369709862,1751707872081,-500.0,0.000213,2]
[369709863,1751707872090,-500.0,0.000213,2]
[369709864,1751707872099,-159.8722378,0.00021315,2]
[369709865,1751707872109,-160.388889,0.0002132,2]
[369709866,1751707872119,-330.91975432,0.00021325,2]
[369709867,1751707872128,-500.0,0.00021325,2]
[369709868,1751707872137,-500.0,0.00021325,2]
[369709869,1751707872147,-500.0,0.00021325,2]
[369709870,1751707872157,-500.0,0.00021325,2]
[369709871,1751707872166,-151.0,0.00021364,2]
[369709872,1751707872176,-151.0,0.00021364,2]
[369709873,1751707872185,-151.0,0.00021364,2]
[369709874,1751707872194,-1210.91323182,0.00021364,2]
[369709875,1751707872204,-500.0,0.00021368,10]
[369709876,1751707872213,-155.847378,0.00021369,2]
[369709877,1751707872223,-151.0,0.00021369,2]
[369709878,1751707872232,-151.0,0.00021369,2]
[369709879,1751707872242,-151.0,0.00021369,2]
[369709880,1751707872251,-151.0,0.00021369,2]
[369709881,1751707872260,-151.0,0.00021369,2]
[369709882,1751707872271,-151.0,0.00021369,2]
[369709883,1751707872280,-151.0,0.00021369,2]
[369709884,1751707872291,-682.29,0.00021369,2]
[369709885,1751707872300,-469.32,0.00021369,2]
[369709886,1751707872310,-151.409858,0.00021369,2]
[369709887,1751707872319,-151.0,0.00021369,2]
[369709888,1751707872328,-460.0,0.00021369,2]
[369709889,1751707872338,-526.86,0.00021369,2]
[369709890,1751707872347,-660.66,0.00021369,2]
[369709891,1751707872357,-684.71,0.00021369,2]
[369709892,1751707872367,-460.0,0.00021369,2]
[369709893,1751707872376,-484.47,0.00021369,2]
[369709894,1751707872385,-271.29,0.00021369,2]
[369709895,1751707872395,-400.129267,0.00021369,2]
[369709896,1751707872404,-400.129267,0.00021369,2]
[369709897,1751707872414,-1087.2,0.00021369,2]
[369709898,1751707872426,-3781.13,0.00021369,2]
[369709899,1751707872435,-521.89,0.00021369,2]
[369709900,1751707872445,-460.0,0.00021369,2]
[369709901,1751707872458,-1571.06,0.00021369,2]
[369709902,1751707872467,-460.0,0.00021369,2]
[369709903,1751707872476,-460.0,0.00021369,2]
[369709904,1751707872486,-1037.13,0.00021369,2]
[369709905,1751707872500,-460.0,0.00021369,2]
[369709906,1751707872510,-3582.28,0.00021369,2]
[369709907,1751707872520,-460.0,0.00021369,2]
[369709908,1751707872530,-2764.96,0.00021369,2]
[369709909,1751707872539,-604.66,0.00021369,2]
[369709910,1751707872549,-1350.46,0.00021369,2]
[369709911,1751707872558,-1103.03,0.00021369,2]
[369709912,1751707872568,-460.0,0.00021369,2]
[369709913,1751707872578,-612.38,0.00021369,2]
[369709914,1751707872588,-460.0,0.00021369,2]
[369709915,1751707872598,-460.0,0.00021369,2]
[369709916,1751707872607,-789.8,0.00021369,2]
[369709917,1751707872617,-460.0,0.00021369,2]
[369709918,1751707872626,-1554.87,0.00021369,2]
[369709919,1751707872635,-469.04,0.00021369,2]
[369709920,1751707872644,-525.18,0.00021369,2]
[369709921,1751707872654,-1860.12,0.00021369,2]
[369709922,1751707872663,-773.29,0.00021369,2]
[369709923,1751707872672,-2251.26,0.00021369,2]
[369709924,1751707872681,-460.0,0.00021369,2]
[369709925,1751707872690,-3715.95,0.00021369,2]
[369709926,1751707872699,-595.4,0.00021369,2]
[369709927,1751707872709,-151.705346,0.00021369,2]
[369709928,1751707872718,-272.978804,0.00021369,2]
[369709929,1751707872727,-460.0,0.00021369,2]
[369709930,1751707872737,-272.978804,0.00021369,2]
[369709931,1751707872747,-611.53,0.00021369,2]
[369709932,1751707872756,-563.95,0.00021369,2]
[369709933,1751707872766,-1475.55,0.00021369,2]
[369709934,1751707872778,-1348.12,0.00021369,2]
[369709935,1751707872788,-460.0,0.00021369,2]
[369709936,1751707872797,-211.69,0.00021369,2]
[369709937,1751707872806,-1571.18,0.00021369,2]
[369709938,1751707872817,-460.0,0.00021369,2]
[369709939,1751707872826,-840.45,0.00021369,2]
[369709940,1751707872835,-151.0,0.00021369,2]
[369709941,1751707872844,-532.91,0.00021369,2]
[369709942,1751707872854,-460.0,0.00021369,2]
[369709943,1751707872863,-365.0,0.00021369,2]
[369709944,1751707872873,-876.43,0.00021369,2]
[369709945,1751707872883,-3634.14,0.00021369,2]
[369709946,1751707872892,-460.0,0.00021369,2]
[369709947,1751707872902,-2031.79,0.00021369,2]
[369709948,1751707872911,-60551.5240894,0.00021389,5]
[369709949,1751707872920,-152.751388,0.00021389,2]
[369709950,1751707872930,-151.0,0.00021389,2]
[369709951,1751707872939,-151.0,0.00021389,2]
[369709952,1751707872949,-244.807354,0.00021389,2]
[369709953,1751707872958,-411.674275,0.00021389,2]
[369709954,1751707872968,-411.674275,0.00021389,2]
[369709955,1751707872977,-151.0,0.00021389,2]
[369709956,1751707872986,-151.0,0.00021389,2]
[369709957,1751707872995,-151.0,0.00021389,2]
[369709958,1751707873147,-245.216285,0.00021389,2]
[369709959,1751707873156,-245.216285,0.00021389,2]
[369709960,1751707873166,-190.215856,0.00021389,2]
[369709961,1751707873176,-190.215856,0.00021389,2]
[369709962,1751707873185,-151.0,0.00021389,2]
[369709963,1751707873195,-151.0,0.00021389,2]
[369709964,1751707873204,-438.86253,0.00021389,2]
[369709965,1751707873213,-438.86253,0.00021389,2]
[369709966,1751707873223,-183.215037,0.00021389,2]
[369709967,1751707873232,-183.215037,0.00021389,2]
[369709968,1751707873241,-167.477657,0.00021389,2]
[369709969,1751707873251,-151.0,0.00021389,2]
[369709970,1751707873260,-151.0,0.00021389,2]
[369709971,1751707873270,-174.845258,0.00021407,10]
[369709972,1751707873280,-205.49733553,0.00021422,5]
[369709973,1751707873290,-225.298587,0.00021427,2]
[369709974,1751707873300,-225.298587,0.00021427,2]
[369709975,1751707873309,-151.0,0.00021427,2]
[369709976,1751707873319,-151.0,0.00021433,2]
[369709977,1751707873328,-151.0,0.00021433,2]
[369709978,1751707873337,-160.388889,0.00021448,2]
[369709979,1751707873347,-165.49747021,0.00021452,2]
[369709980,1751707873356,-168.0,0.00021453,2]
[369709981,1751707873366,-230.574355,0.00021458,2]
[369709982,1751707873376,-151.0,0.00021458,2]
[369709983,1751707873386,-4856.69780502,0.00021466,2]
[369709984,1751707873408,-455.18249544,0.00021466,2]
[369709985,1751707873556,-11123.12316708,0.0001907,2]
[369709986,1751707873887,-4298.7787942,0.00018587,2]
[369710018,1751708143530,167.343683,0.00013699,2]
[369710065,1751708486474,-274.94535187,0.00017024,2]
[369710066,1751708493634,-279.70266014,0.00017024,2]
[369710067,1751708495897,-66.45755761,0.00017024,2]
[369710068,1751708495921,-187.38388318,0.0001792,2]
[369710069,1751708501952,-157.17563894,0.0001792,2]
[369710070,1751708509813,-155.44047788,0.0001792,2]
[369710071,1751708509841,-63.11485241,0.00018035,2]
[369710072,1751708511499,-164.6016148,0.00018035,2]
[369710073,1751708517357,-248.6726042,0.00018035,2]
[369710074,1751708520068,-219.28612521,0.00018035,2]
[369710075,1751708521615,-316.67477201,0.00018035,2]
[369710076,1751708528023,-293.59886255,0.00018035,2]
[369710077,1751708534034,-289.12374143,0.00018035,2]
[369710078,1751708536668,-264.19892898,0.00018035,2]
[369710080,1751708543268,-241.04689112,0.00018035,2]
[369710081,1751708549608,-204.95116927,0.00018035,2]
[369710083,1751708555188,460.0,0.00024682,60]
[369710084,1751708558481,-273.0123414,0.00018035,2]
[369710085,1751708565195,-161.31113428,0.00018035,2]
[369710087,1751708566772,-275.90127903,0.00018035,2]
[369710088,1751708578951,-243.34200151,0.00018035,2]
[369710090,1751708582377,-337.81979583,0.00018035,2]
[369710091,1751708587048,-168.93641714,0.00018035,2]
[369710092,1751708590156,-186.29299539,0.00018035,2]
[369710094,1751708596780,-277.42760269,0.00018035,2]
[369710095,1751708603097,-261.56249545,0.00018035,2]
[369710102,1751708727253,89999.999999,0.0002739,120]
[369710116,1751708988560,-342.1068998,0.00017499,2]
[369710117,1751708990770,-163.41782826,0.00017499,2]
[369710118,1751708995706,-196.74389267,0.00017499,2]
[369710119,1751708997864,-154.24682074,0.00017499,2]
[369710120,1751709000720,-156.31850739,0.00017499,2]
[369710121,1751709006363,-256.53654834,0.00017499,2]
[369710123,1751709010084,-163.64846976,0.00017499,2]
[369710124,1751709013920,-168.75269774,0.00017499,2]
[369710125,1751709015633,-152.92079196,0.00017499,2]
[369710127,1751709019578,-138.95545535,0.00017499,2]
[369710174,1751709032927,-316.666858,0.00018042,2]
[369710175,1751709032937,-500.0,0.00018863,2]
[369710176,1751709032947,-164.85048132,0.00018962,2]
[369710177,1751709032956,-1072.98593378,0.00018963,2]
[369710178,1751709032968,-91.55630859,0.00018963,2]
[369710179,1751709032977,-895.79135538,0.0001897,2]
[369710180,1751709032986,-33.25265251,0.0001902,2]
[369710181,1751709032997,-131.5978288,0.0001902,2]
[369710182,1751709033007,-1200.0,0.00019059,2]
[369710183,1751709033016,-21412.91455906,0.0001906,2]
[369710184,1751709033033,-58216.32665978,0.0001906,2]
[369710193,1751709038403,-10322.21109386,0.0001906,2]
[369710194,1751709038416,-302.4999038,0.0001906,2]
[369710195,1751709038457,-231735.741233,0.0001906,2]
[369710196,1751709038467,-300.0,0.0001906,2]
[369710197,1751709038476,-259.0,0.0001906,2]
[369710198,1751709038485,-300.0,0.0001906,2]
[369710199,1751709038494,-500.0,0.0001906,2]
[369710200,1751709038504,-2761.0399876,0.0001906,2]
[369710202,1751709038513,-500.0,0.0001906,2]
[369710203,1751709038522,-500.0,0.0001906,2]
[369710204,1751709038532,-351.16960159,0.0001906,2]
[369710205,1751709038541,-500.0,0.0001906,2]
[369710206,1751709038550,-500.0,0.0001906,2]
[369710207,1751709038561,-2761.0399876,0.0001906,2]
[369710208,1751709038573,-329.16156037,0.0001906,2]
[369710209,1751709038583,-500.0,0.0001906,2]
[369710210,1751709038592,-500.0,0.0001906,2]
[369710211,1751709038602,-500.0,0.0001906,2]
[369710212,1751709038612,-245.56486144,0.0001906,2]
[369710213,1751709038621,-597.71021352,0.0001906,2]
[369710214,1751709038630,-2761.0399876,0.0001906,2]
[369710215,1751709038640,-500.0,0.0001906,2]
[369710216,1751709038649,-500.0,0.0001906,2]
[369710217,1751709038658,-500.0,0.0001906,2]
[369710218,1751709038667,-2761.0399876,0.0001906,2]
[369710219,1751709038677,-500.0,0.0001906,2]
[369710220,1751709038686,-500.0,0.0001906,2]
[369710221,1751709038695,-2761.0399876,0.0001906,2]
[369710222,1751709038704,-500.0,0.0001906,2]
[369710223,1751709038713,-500.0,0.0001906,2]
[369710224,1751709038722,-500.0,0.0001906,2]
[369710225,1751709038732,-500.0,0.0001906,2]
[369710226,1751709038741,-2761.0399876,0.0001906,2]
[369710227,1751709038751,-500.0,0.0001906,2]
[369710228,1751709038760,-500.0,0.0001906,2]
[369710229,1751709038769,-2761.0399876,0.0001906,2]
[369710230,1751709038778,-500.0,0.0001906,2]
[369710231,1751709038788,-500.0,0.0001906,2]
[369710232,1751709038798,-500.0,0.0001906,2]
[369710233,1751709038807,-500.0,0.0001906,2]
[369710234,1751709038816,-2761.0399876,0.0001906,2]
[369710235,1751709038825,-500.0,0.0001906,2]
[369710236,1751709038834,-500.0,0.0001906,2]
[369710237,1751709038843,-2761.0399876,0.0001906,2]
[369710238,1751709038854,-500.0,0.0001906,2]
[369710239,1751709038863,-500.0,0.0001906,2]
[369710240,1751709038872,-500.0,0.0001906,2]
[369710241,1751709038881,-500.0,0.0001906,2]
[369710242,1751709038890,-2761.0399876,0.0001906,2]
[369710243,1751709038899,-500.0,0.0001906,2]
[369710244,1751709038908,-2761.0399876,0.0001906,2]
[369710245,1751709038917,-500.0,0.0001906,2]
[369710246,1751709038926,-280.24863595,0.0001906,2]
[369710247,1751709038936,-2761.0399876,0.0001906,2]
[369710248,1751709038945,-500.0,0.0001906,2]
[369710249,1751709038954,-500.0,0.0001906,2]
[369710250,1751709038964,-500.0,0.0001906,2]
[369710251,1751709038973,-2761.0399876,0.0001906,2]
[369710252,1751709038982,-500.0,0.0001906,2]
[369710253,1751709038991,-500.0,0.0001906,2]
[369710254,1751709039000,-2761.0399876,0.0001906,2]
[369710255,1751709039009,-500.0,0.0001906,2]
[369710256,1751709039018,-411.51580145,0.0001906,2]
[369710257,1751709039028,-2761.0399876,0.0001906,2]
[369710258,1751709039037,-500.0,0.0001906,2]
[369710259,1751709039047,-2761.0399876,0.0001906,2]
[369710260,1751709039056,-500.0,0.0001906,2]
[369710261,1751709039065,-2761.0399876,0.0001906,2]
[369710262,1751709039074,-500.0,0.0001906,2]
[369710263,1751709039084,-500.0,0.0001906,2]
[369710264,1751709039093,-500.0,0.0001906,2]
[369710265,1751709039103,-500.0,0.0001906,2]
[369710266,1751709039112,-500.0,0.0001906,2]
[369710267,1751709039121,-500.0,0.0001906,2]
[369710268,1751709039130,-2761.0399876,0.0001906,2]
[369710269,1751709039139,-500.0,0.0001906,2]
[369710270,1751709039147,-2761.0399876,0.0001906,2]
[369710271,1751709039156,-500.0,0.0001906,2]
[369710272,1751709039165,-500.0,0.0001906,2]
[369710273,1751709039174,-2761.0399876,0.0001906,2]
[369710274,1751709039184,-2761.0399876,0.0001906,2]
[369710275,1751709039193,-2761.0399876,0.0001906,2]
[369710276,1751709039201,-500.0,0.0001906,2]
[369710277,1751709039210,-2761.0399876,0.0001906,2]
[369710278,1751709039219,-500.0,0.0001906,2]
[369710279,1751709039228,-500.0,0.0001906,2]
[369710280,1751709039237,-2761.0399876,0.0001906,2]
[369710281,1751709039246,-500.0,0.0001906,2]
[369710282,1751709039255,-2761.0399876,0.0001906,2]
[369710283,1751709039264,-500.0,0.0001906,2]
[369710284,1751709039273,-500.0,0.0001906,2]
[369710285,1751709039282,-2761.0399876,0.0001906,2]
[369710286,1751709039291,-500.0,0.0001906,2]
[369710287,1751709039300,-500.0,0.0001906,2]
[369710288,1751709039309,-2761.0399876,0.0001906,2]
[369710289,1751709039318,-500.0,0.0001906,2]
[369710290,1751709039327,-500.0,0.0001906,2]
[369710291,1751709039337,-2761.0399876,0.0001906,2]
[369710292,1751709039345,-500.0,0.0001906,2]
[369710293,1751709039354,-500.0,0.0001906,2]
[369710294,1751709039363,-2761.0399876,0.0001906,2]
[369710295,1751709039373,-500.0,0.0001906,2]
[369710296,1751709039382,-2761.0399876,0.0001906,2]
[369710297,1751709039391,-500.0,0.0001906,2]
[369710298,1751709039400,-500.0,0.0001906,2]
[369710299,1751709039410,-2761.0399876,0.0001906,2]
[369710300,1751709039419,-500.0,0.0001906,2]
[369710301,1751709039428,-2761.0399876,0.0001906,2]
[369710302,1751709039437,-500.0,0.0001906,2]
[369710303,1751709039446,-500.0,0.0001906,2]
[369710304,1751709039455,-500.0,0.0001906,2]
[369710305,1751709039465,-500.0,0.0001906,2]
[369710306,1751709039474,-2761.0399876,0.0001906,2]
[369710307,1751709039484,-2761.0399876,0.0001906,2]
[369710308,1751709039494,-500.0,0.0001906,2]
[369710309,1751709039503,-500.0,0.0001906,2]
[369710310,1751709039513,-500.0,0.0001906,2]
[369710311,1751709039522,-2761.0399876,0.0001906,2]
[369710312,1751709039531,-500.0,0.0001906,2]
[369710313,1751709039540,-2761.0399876,0.0001906,2]
[369710314,1751709039549,-2761.0399876,0.0001906,2]
[369710315,1751709039561,-500.0,0.0001906,2]
[369710316,1751709039571,-2761.0399876,0.0001906,2]
[369710317,1751709039580,-500.0,0.0001906,2]
[369710318,1751709039589,-2761.0399876,0.0001906,2]
[369710319,1751709039598,-500.0,0.0001906,2]
[369710320,1751709039607,-2761.0399876,0.0001906,2]
[369710321,1751709039616,-500.0,0.0001906,2]
[369710322,1751709039625,-2761.0399876,0.0001906,2]
[369710323,1751709039634,-500.0,0.0001906,2]
[369710324,1751709039642,-2761.0399876,0.0001906,2]
[369710325,1751709039652,-500.0,0.0001906,2]
[369710326,1751709039661,-500.0,0.0001906,2]
[369710327,1751709039670,-2761.0399876,0.0001906,2]
[369710328,1751709039679,-2761.0399876,0.0001906,2]
[369710329,1751709039688,-500.0,0.0001906,2]
[369710330,1751709039698,-2761.0399876,0.0001906,2]
[369710331,1751709039706,-573.38816356,0.0001906,2]
[369710332,1751709039715,-2761.0399876,0.0001906,2]
[369710333,1751709039724,-2761.0399876,0.0001906,2]
[369710334,1751709039733,-500.0,0.0001906,2]
[369710335,1751709039742,-2761.0399876,0.0001906,2]
[369710336,1751709039751,-500.0,0.0001906,2]
[369710337,1751709039761,-500.0,0.0001906,2]
[369710338,1751709039770,-500.0,0.0001906,2]
[369710339,1751709039779,-2761.0399876,0.0001906,2]
[369710340,1751709039789,-500.0,0.0001906,2]
[369710341,1751709039798,-2761.0399876,0.0001906,2]
[369710342,1751709039808,-2761.0399876,0.0001906,2]
[369710343,1751709039818,-2761.0399876,0.0001906,2]
[369710344,1751709039827,-2761.0399876,0.0001906,2]
[369710345,1751709039836,-2761.0399876,0.0001906,2]
[369710346,1751709039846,-2761.0399876,0.0001906,2]
[369710347,1751709039856,-2761.0399876,0.0001906,2]
[369710348,1751709039867,-2761.0399876,0.0001906,2]
[369710349,1751709039877,-2761.0399876,0.0001906,2]
[369710351,1751709039886,-2761.0399876,0.0001906,2]
[369710352,1751709039895,-2761.0399876,0.0001906,2]
[369710353,1751709039904,-50000.0,0.00019061,2]
[369710354,1751709039913,-8041.22777143,0.00019061,2]
[369710355,1751709039922,-500.0,0.00019063,2]
[369710356,1751709039931,-500.0,0.00019069,2]
[369710357,1751709039940,-500.0,0.00019069,2]
[369710358,1751709039949,-500.0,0.00019069,2]
[369710359,1751709039958,-383.32327881,0.00019069,2]
[369710360,1751709039967,-500.0,0.00019069,2]
[369710361,1751709039976,-500.0,0.00019069,2]
[369710362,1751709039985,-500.0,0.00019069,2]
[369710363,1751709039994,-500.0,0.00019069,2]
[369710364,1751709040003,-500.0,0.00019069,2]
[369710365,1751709040012,-500.0,0.00019069,2]
[369710366,1751709040021,-500.0,0.00019069,2]
[369710367,1751709040030,-335.5110349,0.00019069,2]
[369710368,1751709040039,-151.0,0.0001907,2]
[369710369,1751709040048,-358876.87683292,0.0001907,2]
[369710370,1751709040057,-498.17287279,0.00019073,2]
[369710371,1751709040069,-164.85048131,0.00019078,2]
[369710372,1751709040078,-1000.0,0.0001917,2]
[369710373,1751709040087,-259.55,0.0001917,2]
[369710374,1751709040096,-500.0,0.00019173,2]
[369710375,1751709040105,-500.0,0.00019173,2]
[369710376,1751709040114,-500.0,0.00019173,2]
[369710377,1751709040123,-500.0,0.00019173,2]
[369710378,1751709040133,-500.0,0.00019173,2]
[369710379,1751709040142,-500.0,0.00019173,2]
[369710380,1751709040150,-500.0,0.00019173,2]
[369710381,1751709040160,-500.0,0.00019173,2]
[369710382,1751709040169,-500.0,0.00019173,2]
[369710383,1751709040178,-500.0,0.00019173,2]
[369710384,1751709040187,-500.0,0.00019173,2]
[369710385,1751709040196,-504.31560942,0.00019173,2]
[369710386,1751709040204,-500.0,0.00019173,2]
[369710387,1751709040213,-460.0,0.00019178,2]
[369710388,1751709040223,-460.0,0.00019178,2]
[369710389,1751709040232,-460.0,0.00019178,2]
[369710390,1751709040240,-460.0,0.00019178,2]
[369710391,1751709040249,-460.0,0.00019178,2]
[369710392,1751709040258,-460.0,0.00019178,2]
[369710393,1751709040267,-460.0,0.00019178,2]
[369710394,1751709040276,-460.0,0.00019178,2]
[369710395,1751709040285,-460.0,0.00019178,2]
[369710396,1751709040294,-460.0,0.00019178,2]
[369710397,1751709040303,-460.0,0.00019178,2]
[369710398,1751709040312,-460.0,0.00019178,2]
[369710399,1751709040321,-460.0,0.00019178,2]
[369710400,1751709040330,-460.0,0.00019178,2]
[369710401,1751709040339,-1000.0,0.00019178,2]
[369710402,1751709040348,-464.84700928,0.00019178,2]
[369710403,1751709040357,-395.87014859,0.00019178,2]
[369710404,1751709040366,-460.0,0.00019178,2]
[369710405,1751709040375,-460.0,0.00019178,2]
[369710406,1751709040384,-460.0,0.00019178,2]
[369710407,1751709040393,-275.43949674,0.00019178,2]
[369710408,1751709040402,-460.0,0.00019178,2]
[369710409,1751709040411,-460.0,0.00019178,2]
[369710410,1751709040420,-460.0,0.00019178,2]